Cogmind - Beta 11.1 @@@ ROGUE MODE // 2022.06.13 @ 07:02:31 Player: Exp. Geonium Core Result: Self-destructed Performance ------------- Evolutions (8) 4000 Regions Visited (23) 4600 Robots Destroyed (132) 660 Value Destroyed (6704) 6704 Prototype IDs (19) 380 Alien Tech Used (0) 0 Bonus (7486) 7486 TOTAL SCORE: 23830 Bonus ------- Pacifist 200 High Alert Combat Kills 582 Follower Combat Kills 3682 Entered Garrisons 1200 Used RIF Installer 2000 Network Hubs Disabled 200 Built Enhanced Grunts 300 A7 Reached Mainframe 300 Met R17 at Cetus 500 Friendly Fire -1478 Cogmind --------- Core Integrity 895/1450 Matter 160/300 Energy 11/100 System Corruption 0% Temperature Cool (12) Movement Flying (32) Location -2/Testing Parts ------- > --- POWER (1) -------- (None) > --- PROPULSION (3) --- Field Propulsion Array Cooled Q-thruster > --- UTILITY (16) ----- Experimental Transmission Jammer System Shield Improved System Shield Relay Coupler [NC] (2) Relay Coupler [Swarmer] (2) > --- WEAPON (3) ------- Matter Neutralizer > --- INVENTORY (5) ---- Biometal Heavy Treads Cooled Linear Gravjet Cooled Linear Gravjet Improved Remote Datajack Peak State ------------ > --- POWER ------------ Quantum Reactor > --- PROPULSION ------- Centrium Heavy Treads Enhanced Flexi-carbon Leg > --- UTILITY ---------- Large Storage Unit Improved Target Analyzer Centrium Medium Armor Plating Centrium Medium Armor Plating Hacking Suite Improved Hacking Suite System Shield Relay Coupler [NC] Relay Coupler [Specialist] Relay Coupler [Hunter] > --- WEAPON ----------- Neutron Cannon KE Penetrator Advanced KE Penetrator > --- INVENTORY -------- Medium Treads Centrium Heavy Treads Relay Coupler [NC] Relay Coupler [NC] Relay Coupler [Swarmer] Relay Coupler [Demolisher] Hypervelocity Coil Gun Hypervelocity Coil Gun Hypervelocity Coil Gun Long-range Missile Launcher Remote Datajack Remote Datajack Phasing Sabre [Rating: 107] Favorites ----------- Power Light Nuclear Core Engine Light Ion Engine Power Core Light Nuclear Core Reactor Quantum Reactor Propulsion Light Treads Treads Light Treads Leg Carbon-fiber Leg Wheel Wheel Hover Unit Combat Gravmag System Flight Unit Cooled Impulse Thruster Utility Large Storage Unit Device Improved Heat Sink Storage Large Storage Unit Processor Improved Target Analyzer Hackware Relay Coupler [NC] Protection Improved Light Armor Plating Weapon Heavy Assault Rifle Energy Gun Particle Gun Energy Cannon Neutron Cannon Ballistic Gun Heavy Assault Rifle Ballistic Cannon Mini Assault Cannon Launcher Long-range Missile Launcher Special Weapon Remote Datajack Slashing Weapon Katana Special Melee Weapon Advanced Datajack Build | -11 -10 -9 -9 -8 -8 -7 -7 -7 -7 -6 -6 -5 -5 -5 -5 -5 -4 -4 -3 -3 -3 -2 -2 ------- Run | Scr Mat Mat Min Mat Gar Fac Gar Fac Gar Fac Gar Fac Ext Cet Arc Hub Fac Gar Res Gar Res Res Tes Slots Evolved 16 | . . 2 . 2 . 2 . . . 2 . 2 . . . . 2 . 2 . . 2 . Power . | . . . . . . . . . . . . . . . . . . . . . . . . Propulsion 1 | . . . . 1 . . . . . . . . . . . . . . . . . . . Utility 14 | . . 2 . . . 2 . . . 2 . 2 . . . . 2 . 2 . . 2 . Weapon 1 | . . . . 1 . . . . . . . . . . . . . . . . . . . Parts Attached 274 | 2 . 13 . 21 21 11 31 12 10 19 13 4 20 10 4 20 29 1 1 4 9 2 17 Power 22 | . . 1 . 2 3 . 2 . 1 2 1 1 2 1 . . 4 . . . . . 2 Engine 7 | . . 1 . 2 1 . . . . 2 1 . . . . . . . . . . . . Core 10 | . . . . . 2 . 2 . 1 . . 1 1 . . . 3 . . . . . . Reactor 5 | . . . . . . . . . . . . . 1 1 . . 1 . . . . . 2 Propulsion 71 | 2 . 3 . 6 6 2 9 1 3 3 5 . 6 1 1 4 3 1 1 1 6 . 7 Treads 28 | 2 . 2 . 3 4 1 6 . . . . . 3 1 1 3 . . . . 2 . . Leg 22 | . . . . 1 2 . 3 1 3 3 5 . 3 . . 1 . . . . . . . Wheel 3 | . . . . 2 . 1 . . . . . . . . . . . . . . . . . Hover 9 | . . 1 . . . . . . . . . . . . . . 3 1 . 1 . . 3 Flight 9 | . . . . . . . . . . . . . . . . . . . 1 . 4 . 4 Utility 76 | . . 5 . 7 2 4 9 6 3 6 4 2 4 3 2 5 6 . . 3 1 2 2 Device 9 | . . . . 2 . 1 . . . . . 1 1 . . 1 1 . . . . 1 1 Storage 3 | . . 2 . 1 . . . . . . . . . . . . . . . . . . . Processor 7 | . . . . 2 . . . . . 1 . . . . . 1 3 . . . . . . Hackware 34 | . . . . . . 2 5 3 3 2 4 1 3 . 2 1 2 . . 3 1 1 1 Protection 23 | . . 3 . 2 2 1 4 3 . 3 . . . 3 . 2 . . . . . . . Artifact . | . . . . . . . . . . . . . . . . . . . . . . . . Weapon 105 | . . 4 . 6 10 5 11 5 3 8 3 1 8 5 1 11 16 . . . 2 . 6 Energy Gun 11 | . . 1 . 1 1 . 3 . . . . . . 3 . 2 . . . . . . . Energy Cannon 7 | . . . . . . . . . . . . . . . . 1 3 . . . . . 3 Ballistic Gun 36 | . . 1 . 4 8 . 3 2 1 3 . . 3 2 1 2 6 . . . . . . Ballistic Cannon 4 | . . . . . . . . . . 1 . . 3 . . . . . . . . . . Launcher 8 | . . . . 1 . . . . 1 3 1 . 1 . . 1 . . . . . . . Special Weapon 26 | . . 2 . . 1 3 4 2 1 . 1 1 . . . 3 4 . . . 2 . 2 Impact Weapon . | . . . . . . . . . . . . . . . . . . . . . . . . Slashing Weapon 10 | . . . . . . . 1 1 . 1 1 . 1 . . 2 2 . . . . . 1 Piercing Weapon . | . . . . . . . . . . . . . . . . . . . . . . . . Special Melee Weapon 3 | . . . . . . 2 . . . . . . . . . . 1 . . . . . . Unidentified Prototypes 11 | . . . . . 1 . . . . . . . 1 4 . 2 . . . . 1 . 2 Parts Lost 90 | . 2 3 . 11 13 2 6 2 4 2 7 . 1 . . 3 9 11 . 3 6 . 5 Power 11 | . . 1 . 1 2 . 1 . 1 2 1 . . . . . 1 . . . . . 1 Propulsion 27 | . 2 1 . 4 4 1 . . 2 . 1 . 1 . . . . 3 . 1 5 . 2 Utility 24 | . . . . 3 1 . 2 1 . . 4 . . . . . 3 7 . 2 1 . . Weapon 28 | . . 1 . 3 6 1 3 1 1 . 1 . . . . 3 5 1 . . . . 2 Highest Loss Streak 11 | . 2 2 . 5 5 2 2 1 3 1 4 . 1 . . 2 4 11 . 2 4 . 2 To Critical Strikes 1 | . . . . . . . . . . . . . . . . . . . . . 1 . . Average Slot Usage (%) 83 | . 80 63 77 79 89 84 93 95 98 92 85 87 91 94 94 88 91 52 19 23 27 27 35 Engine 1 | . 12 6 . 6 3 . . . . 1 4 . . . . . . . . . . . . Core 2 | . . . . . 4 7 6 7 6 2 . 4 3 . . . 3 . . . . . . Treads 8 | . 26 13 22 9 14 20 17 . . . . . 4 11 11 10 3 . . . 3 . . Leg 6 | . . . . . 7 . 3 23 22 20 20 17 12 . . . . . . . . . . Wheel 1 | . . . . 9 1 1 1 . . . . . . . . . . . . . . . . Hover 1 | . . 3 . . . . . . . . . . . . . . 10 10 . 2 . . 2 Device 2 | . . . . 6 3 4 5 . . . . 3 3 5 2 1 6 2 . . . 1 2 Storage 5 | . 12 6 11 7 9 7 7 7 7 6 6 5 5 5 5 5 5 . . . . . . Processor 3 | . . . . 5 16 . . . . 1 . . . . . 1 13 13 4 1 . . . Hackware 20 | . . . . . . 3 11 26 37 29 28 39 40 37 37 35 32 21 9 16 19 21 18 Protection 6 | . . 13 22 9 6 15 18 7 . 8 5 . . 9 11 9 . . . . . . . Energy Gun 2 | . 14 6 11 6 . . 5 1 . . . . . 1 . 2 . . . . . . . Ballistic Gun 8 | . 14 6 11 17 20 8 7 7 7 5 . . 6 14 16 5 8 . . . . . . Special Weapon 3 | . . 7 . . 1 11 5 6 4 6 3 3 2 . . 2 1 . . . . . 3 Slashing Weapon 1 | . . . . . . . . 5 7 5 3 5 3 . . 2 1 2 . . . . 1 Naked Turns 5 | . . 3 . 2 . . . . . . . . . . . . . . . . . . . Heaviest Build 75 | 13 13 43 36 43 42 44 44 37 37 42 47 41 54 75 75 74 66 5 . . 3 6 22 Greatest Support 108 | 40 40 40 40 40 66 63 60 50 50 50 45 45 69 103 108 108 108 42 16 16 21 7 42 Greatest Overweight (x) 4 | . . 1 . 4 3 4 4 . 1 . 1 . 3 . . 2 1 . . . . . 1 Average Overweight (x) . | . . . . 1 . 1 . . . . . . . . . . . . . . . . . Largest Inventory Capacity 15 | 8 8 15 15 15 15 15 15 15 15 15 15 15 15 15 15 15 15 5 5 5 5 5 5 Average Capacity 13 | 8 7 10 15 12 15 15 15 15 15 15 15 15 15 15 15 15 14 5 5 5 5 5 5 Most Carried 15 | 7 4 5 5 15 15 15 15 15 15 15 15 15 15 15 15 15 14 5 5 5 5 5 5 Average Carried 11 | 5 2 4 5 8 13 13 13 14 13 14 14 14 14 14 14 13 11 5 5 4 3 2 4 Final Capacity 15 | 8 5 15 15 15 15 15 15 15 15 15 15 15 15 15 15 15 5 5 5 5 5 5 5 Final Carried 15 | 2 4 5 5 15 15 14 15 14 14 14 15 14 15 15 15 11 5 5 5 4 2 5 5 Class Distribution -------------------- 49% | Bothacker-Mutant 10% | Botlord-Mutant 6% | Bothacker-Tank 6% | Scavenger-Mutant 6% | Mutant 4% | Scavenger-Tank 4% | Botlord-Tank 3% | Botlord-Gunner Dominant Class ---------------- Mutant | -10/Materials Scavenger-Mutant | -9/Materials Scavenger-Mutant | -9/Mines Scavenger-Mutant | -8/Materials Bothacker-Mutant | -8/Garrison Bothacker-Tank | -7/Factory Bothacker-Mutant | -7/Garrison Bothacker-Mutant | -7/Factory Bothacker-Mutant | -7/Garrison Bothacker-Mutant | -6/Factory Bothacker-Mutant | -6/Garrison Botlord-Mutant | -5/Factory Botlord-Mutant | -5/Extension Botlord-Tank | -5/Cetus Botlord-Tank | -5/Archives Bothacker-Mutant | -5/Hub_04(d) Bothacker-Mutant | -4/Factory Bothacker-Mutant | -4/Garrison Mutant | -3/Research Bothacker-Mutant | -3/Garrison Bothacker-Mutant | -3/Research Bothacker-Mutant | -2/Research Hacker-Mutant | -2/Testing Resources | -11 -10 -9 -9 -8 -8 -7 -7 -7 -7 -6 -6 -5 -5 -5 -5 -5 -4 -4 -3 -3 -3 -2 -2 ----------- Run | Scr Mat Mat Min Mat Gar Fac Gar Fac Gar Fac Gar Fac Ext Cet Arc Hub Fac Gar Res Gar Res Res Tes Matter Collected 5772 | 200 . 149 . 484 829 167 546 188 280 341 449 . 578 267 138 332 553 . . . 85 . 186 Remotely . | . . . . . . . . . . . . . . . . . . . . . . . . Salvage Created 5333 | . . 149 . 755 1083 185 618 55 257 304 418 . 463 287 . 433 307 . . . . . 19 Parts 262 | . . 8 . 42 56 10 35 8 8 5 13 . 18 12 . 21 22 . . . . . 4 Haulers Intercepted 1 | . . . . 1 . . . . . . . . . . . . . . . . . . . Recyclers Shooed 6 | . . . . 1 . 3 . 1 . . . . . . . . . . . . . . 1 Parts Field Recycled . | . . . . . . . . . . . . . . . . . . . . . . . . Retrieved Matter . | . . . . . . . . . . . . . . . . . . . . . . . . Parts Self-Destructed . | . . . . . . . . . . . . . . . . . . . . . . . . Prevented . | . . . . . . . . . . . . . . . . . . . . . . . . Kills | -11 -10 -9 -9 -8 -8 -7 -7 -7 -7 -6 -6 -5 -5 -5 -5 -5 -4 -4 -3 -3 -3 -2 -2 ------- Run | Scr Mat Mat Min Mat Gar Fac Gar Fac Gar Fac Gar Fac Ext Cet Arc Hub Fac Gar Res Gar Res Res Tes Combat Hostiles Destroyed 102 | . . 3 . 19 24 1 13 1 7 8 11 . 3 3 . 6 3 . . . . . . Melee 3 | . . . . . . . 1 1 . . 1 . . . . . . . . . . . . Guns 64 | . . 1 . 16 23 1 10 . 1 2 . . 3 3 . 1 3 . . . . . . Cannons 9 | . . 1 . . 1 . 2 . . . 4 . . . . 1 . . . . . . . AOE 25 | . . . . 3 . . . . 6 6 6 . . . . 4 . . . . . . . Classes Destroyed 17 | . . 2 . 6 2 . 2 . 1 . . . . . . 2 2 . . . . . . Worker 7 | . . . . 1 . 1 . . . . . . . . . 5 . . . . . . . Builder 8 | . . . . 3 . . . 1 . . . . . . . 4 . . . . . . . Tunneler 1 | . . . . . . . . . . . . . . . . . 1 . . . . . . Hauler 1 | . . . . 1 . . . . . . . . . . . . . . . . . . . Recycler 6 | . . . . 2 . 1 . . . 1 . . 2 . . . . . . . . . . Operator 2 | . . . . 1 . . . . . . . . . . . . . . . . . . 1 Watcher 1 | . . . . . . . . . . . . . . . . 1 . . . . . . . Swarmer 18 | . . . . 11 4 . 2 . . . . . . . . . 1 . . . . . . Saboteur 1 | . . . . . . . . . . . . . . . . 1 . . . . . . . Grunt 55 | . . 1 . 4 13 1 7 . 4 7 10 . 2 1 . 4 1 . . . . . . Brawler 3 | . . . . . 1 . . . 2 . . . . . . . . . . . . . . Duelist 4 | . . . . . 2 . . . . 1 1 . . . . . . . . . . . . Sentry 13 | . . 2 . 4 4 . 2 . . . . . . . . 1 . . . . . . . Demolisher 1 | . . . . . . . . . 1 . . . . . . . . . . . . . . Hunter 1 | . . . . . . . 1 . . . . . . . . . . . . . . . . Programmer 4 | . . . . . . . 1 1 1 . . . . . . . 1 . . . . . . Behemoth 1 | . . . . . . . . . . . . . . . . . 1 . . . . . . Cetus Guard 2 | . . . . . . . . . . . . . . 2 . . . . . . . . . Enhanced Grunt 1 | . . . . . . . . . . . . . . . . 1 . . . . . . . Thug 1 | . . . . . . . . . . . . . 1 . . . . . . . . . . Savage 1 | . . . . . . . . . . . . . . 1 . . . . . . . . . Best Kill Streak 10 | . . 1 . 5 7 1 5 1 3 4 5 . 2 2 . 10 1 . . . . . 1 Combat Bots Only 7 | . . 1 . 4 7 1 5 1 3 4 5 . 2 2 . 5 1 . . . . . . Max Kills in Single Turn 5 | . . 1 . 2 2 1 2 1 2 2 3 . 2 2 . 5 1 . . . . . 1 Gunslinging 1 | . . . . 1 1 . . . . . . . . . . . . . . . . . . Exploded 3 | . . . . 2 . . . . 2 2 3 . . . . 2 . . . . . . . Melee 1 | . . . . . . . 1 1 . . 1 . . . . . . . . . . . . Uniques/NPCs Destroyed . | . . . . . . . . . . . . . . . . . . . . . . . . Combat | -11 -10 -9 -9 -8 -8 -7 -7 -7 -7 -6 -6 -5 -5 -5 -5 -5 -4 -4 -3 -3 -3 -2 -2 -------- Run | Scr Mat Mat Min Mat Gar Fac Gar Fac Gar Fac Gar Fac Ext Cet Arc Hub Fac Gar Res Gar Res Res Tes Damage Taken 17351 | . 521 665 . 1079 1897 187 1589 212 514 662 663 . 362 473 157 1441 1780 1311 91 575 1875 36 1261 Core 3979 | . 109 28 . 159 333 18 127 15 55 112 . . 47 46 . 237 210 721 73 358 776 36 519 Absorbed by Shields 378 | . . . . 16 50 . 38 . . . . . 149 116 . . . . . 9 . . . Reduced by Siege Mode 36 | . . . . . . . . . . . . . . . . . 36 . . . . . . Redirected to Shielding 47 | . . . . . . 10 26 11 . . . . . . . . . . . . . . . Core Remaining (%) 56 | 100 56 . 93 . 10 . . . 69 . 86 . . . . 67 . 19 . . 7 . . Volleys Fired 489 | . . 12 . 62 87 18 56 16 17 40 31 2 33 17 3 26 39 . . . 3 . 27 Largest 3 | . . 2 . 3 3 3 3 1 1 2 1 1 3 3 3 3 3 . . . 1 . 1 Hottest 240 | . . 79 . 113 73 63 153 23 39 76 48 5 114 240 148 240 158 . . . 5 . 105 Shots Fired 819 | . . 21 . 114 196 38 89 18 17 42 31 2 53 49 9 44 66 . . . 3 . 27 Gun 570 | . . 17 . 110 194 13 67 6 4 13 . . 15 49 9 28 45 . . . . . . Cannon 68 | . . . . . . . . . . 7 23 . 21 . . 7 5 . . . . . 5 Launcher 29 | . . . . 4 . . . . 6 7 5 . 4 . . 3 . . . . . . . Special 152 | . . 4 . . 2 25 22 12 7 15 3 2 13 . . 6 16 . . . 3 . 22 Kinetic 562 | . . 10 . 90 194 13 47 6 4 20 23 . 36 48 7 19 45 . . . . . . Thermal 115 | . . 11 . 20 2 25 28 . . . . . . 1 2 16 5 . . . . . 5 Explosive 29 | . . . . 4 . . . . 6 7 5 . 4 . . 3 . . . . . . . Electromagnetic . | . . . . . . . . . . . . . . . . . . . . . . . . Robot Hit Streak 28 | . . 7 . 14 13 21 21 3 8 11 8 1 6 21 12 8 28 . . . 3 . 16 Robot Miss Streak 6 | . . 2 . 3 6 2 3 3 1 5 3 1 3 3 . 4 1 . . . . . 1 Penetration Max 1 | . . . . . . . . . . . . . 1 1 1 1 . . . . . . . Secondary Targets 15 | . . . . 4 8 . 2 . . . . . . . . . 1 . . . . . . Max Gunslinging Chain 1 | . . . . 1 1 . 1 . . . . . . . . . 1 . . . . . . Shots Hit Robots 621 | . . 16 . 82 132 31 63 14 17 33 32 1 30 36 9 35 62 3 . . 3 . 22 Core Hits 265 | . . 4 . 38 45 8 26 3 18 28 28 . 12 17 3 20 13 1 . . . . 1 Critical Kills 9 | . . . . 1 . . . . . . . . 3 3 . . 2 . . . . . . Critical Parts Destroyed 18 | . . . . 1 2 . . . . . . . 3 5 1 1 5 . . . . . . Critical Strikes 42 | . . 2 . 2 2 . 3 . . . 1 . 7 11 2 1 10 1 . . . . . Burn 3 | . . 2 . . . . 1 . . . . . . . . . . . . . . . . Destroy 33 | . . . . 2 2 . . . . . . . 6 11 2 1 9 . . . . . . Sever 6 | . . . . . . . 2 . . . 1 . 1 . . . 1 1 . . . . . Melee Attacks 80 | . . . . . . 10 6 6 6 1 14 . 13 . . 8 10 4 . . . . 2 Impact . | . . . . . . . . . . . . . . . . . . . . . . . . Slashing 69 | . . . . . . . 6 6 6 1 14 . 13 . . 8 9 4 . . . . 2 Piercing . | . . . . . . . . . . . . . . . . . . . . . . . . Sneak Attacks 26 | . . . . . . . . 1 3 . . . 6 . . 6 8 . . . . . 2 Combat Hostiles 3 | . . . . . . . . . . . . . 3 . . . . . . . . . . Follow-up Attacks . | . . . . . . . . . . . . . . . . . . . . . . . . Damage Inflicted 15373 | . 3 233 . 1601 2249 332 851 222 1170 1657 1519 . 679 947 257 1940 1298 129 . 24 . . 262 Guns 7313 | . . 190 . 1373 2220 177 666 16 51 275 . . 117 947 257 528 496 . . . . . . Cannons 981 | . . . . . . . . . . 165 518 . 32 . . 111 155 . . . . . . Explosions 3888 | . . . . 182 . . . . 927 1210 737 . 11 . . 821 . . . . . . . Melee 2743 | . . . . . . . 90 173 192 . 264 . 519 . . 480 647 116 . . . . 262 Ramming 168 | . 3 9 . 46 7 . 26 33 . 7 . . . . . . . 13 . 24 . . . Kinetic 7387 | . . 119 . 1194 2220 177 503 16 51 440 518 . 149 947 212 345 496 . . . . . . Thermal 1187 | . . 105 . 179 22 155 232 . . . . . . . 45 294 155 . . . . . . Explosive 3888 | . . . . 182 . . . . 927 1210 737 . 11 . . 821 . . . . . . . Electromagnetic . | . . . . . . . . . . . . . . . . . . . . . . . . Impact . | . . . . . . . . . . . . . . . . . . . . . . . . Slashing 2743 | . . . . . . . 90 173 192 . 264 . 519 . . 480 647 116 . . . . 262 Piercing . | . . . . . . . . . . . . . . . . . . . . . . . . Highest Corruption 10 | . . . . . . 4 8 9 9 . . . . . . . . . . 7 10 . . Average Corruption 6 | . . . . . . 3 6 8 9 . . . . . . . . . . 4 7 . . Corruption Purged . | . . . . . . . . . . . . . . . . . . . . . . . . Corruption Blocked . | . . . . . . . . . . . . . . . . . . . . . . . . Effects 84 | . . . . . . 9 31 15 19 . . . . . . . . . . 2 8 . . Message Errors 28 | . . . . . . 3 15 3 5 . . . . . . . . . . . 2 . . Matter Fused 22 | . . . . . . 4 4 4 6 . . . . . . . . . . 1 3 . . Heat Flow Errors 9 | . . . . . . 1 3 2 3 . . . . . . . . . . . . . . Energy Discharges 9 | . . . . . . . 5 2 1 . . . . . . . . . . . 1 . . Parts Rejected 1 | . . . . . . . . 1 . . . . . . . . . . . . . . . Data Loss (minor) 7 | . . . . . . 1 1 1 3 . . . . . . . . . . . 1 . . Data Loss (major) 3 | . . . . . . . . . 1 . . . . . . . . . . 1 1 . . Misfires 4 | . . . . . . . 2 2 . . . . . . . . . . . . . . . Alerts 1 | . . . . . . . 1 . . . . . . . . . . . . . . . . Overload Shots 2 | . . . . . . . . . . . . . . 1 . 1 . . . . . . . Overflow Damage 371 | . . . . 6 . . 2 . . 32 5 . 28 . . 230 68 . . . . . . Projectiles 7 | . . . . . . . 2 . . . 5 . . . . . . . . . . . . Explosions 47 | . . . . . . . . . . 32 . . . . . 15 . . . . . . . Melee 317 | . . . . 6 . . . . . . . . 28 . . 215 68 . . . . . . Knockbacks 11 | . . . . 1 . . . . . 4 6 . . . . . . . . . . . . Impact 1 | . . . . 1 . . . . . . . . . . . . . . . . . . . Kinetic 10 | . . . . . . . . . . 4 6 . . . . . . . . . . . . Secondary . | . . . . . . . . . . . . . . . . . . . . . . . . Self-Inflicted Damage 166 | . . . . 77 . . 22 . 10 40 . . . . . . . 6 . 11 . . . Shots 4 | . . . . 2 . . . . 1 1 . . . . . . . . . . . . . Rammed 17 | . 1 1 . 4 1 . 1 . . . . . . . . . . 3 . 6 . . . Targets Rammed 22 | . 1 1 . 4 1 . 1 3 . 1 1 . . . . . . 3 . 6 . . . Kicked 5 | . . . . . . . . 3 . 1 1 . . . . . . . . . . . . Crushed . | . . . . . . . . . . . . . . . . . . . . . . . . Highest Temperature 340 | . . 297 . 126 114 214 189 160 214 36 19 . 126 192 135 340 18 24 . . . . 102 Average Temperature 68 | . . 150 . 41 42 113 58 71 93 12 5 . 55 80 56 131 10 13 . . . . 39 Received Heat Transfer 4195 | . 201 261 . 412 1032 54 444 36 216 315 291 . 89 65 9 129 99 326 . . 171 . 45 Effects 3 | . . 2 . . . . . . 1 . . . . . . . . . . . . . . Energy Bleed 1 | . . 1 . . . . . . . . . . . . . . . . . . . . . Interference 2 | . . 1 . . . . . . 1 . . . . . . . . . . . . . . Siege Activations 1 | . . . . . . . . . . . . . . . . . 1 . . . . . . Total Turns 46 | . . . . . . . . . . . . . . . . . 46 . . . . . . Longest Duration 46 | . . . . . . . . . . . . . . . . . 46 . . . . . . Robots Corrupted . | . . . . . . . . . . . . . . . . . . . . . . . . Combat Hostiles . | . . . . . . . . . . . . . . . . . . . . . . . . Parts Fried 2 | . . . . 2 . . . . . . . . . . . . . . . . . . . Impact Corruptions 2 | . . . . 2 . . . . . . . . . . . . . . . . . . . Robots Melted 1 | . . 1 . . . . . . . . . . . . . . . . . . . . . Combat Hostiles 1 | . . 1 . . . . . . . . . . . . . . . . . . . . . Parts Melted 9 | . . 3 . 2 . . 4 . . . . . . . . . . . . . . . . Heat Transferred 2442 | . . 444 . 444 74 518 666 . . . . . . . 74 222 . . . . . . . Parts Sabotaged . | . . . . . . . . . . . . . . . . . . . . . . . . Parts Stolen . | . . . . . . . . . . . . . . . . . . . . . . . . Parts Stripped . | . . . . . . . . . . . . . . . . . . . . . . . . Power Chain Reactions . | . . . . . . . . . . . . . . . . . . . . . . . . Missiles Intercepted . | . . . . . . . . . . . . . . . . . . . . . . . . Alert | -11 -10 -9 -9 -8 -8 -7 -7 -7 -7 -6 -6 -5 -5 -5 -5 -5 -4 -4 -3 -3 -3 -2 -2 ------- Run | Scr Mat Mat Min Mat Gar Fac Gar Fac Gar Fac Gar Fac Ext Cet Arc Hub Fac Gar Res Gar Res Res Tes Peak Influence 869 | . . 126 48 423 869 504 566 430 508 641 796 424 461 849 434 540 313 132 112 84 288 220 453 Initial 455 | . . . 48 18 274 455 212 296 164 256 295 417 207 257 259 151 255 17 82 84 38 162 123 Average 343 | . . 53 48 221 599 456 419 334 356 360 594 420 241 570 407 311 163 60 95 76 99 181 247 Maximum Alert Level 3 | . . . . 2 3 2 2 2 2 2 3 2 2 3 2 2 1 . . . 1 1 2 Low Security (%) 23 | 100 100 100 100 35 . . . . 11 . . . 41 . . 6 45 100 100 100 85 72 33 Level 1 38 | . . . . 63 19 8 37 84 46 58 28 . 28 39 20 64 54 . . . 14 27 65 Level 2 31 | . . . . . 58 91 62 15 41 41 19 100 30 33 79 28 . . . . . . 1 Level 3 6 | . . . . . 22 . . . . . 51 . . 27 . . . . . . . . . Level 4 . | . . . . . . . . . . . . . . . . . . . . . . . . Level 5 . | . . . . . . . . . . . . . . . . . . . . . . . . High Security . | . . . . . . . . . . . . . . . . . . . . . . . . Max Security . | . . . . . . . . . . . . . . . . . . . . . . . . Squads Dispatched 44 | . 3 2 . 3 . 1 . 2 . 3 . 2 2 . . 10 7 . 1 . 1 1 6 Investigation 8 | . 1 . . . . . . . . 2 . 1 . . . 2 1 . . . . . 1 Extermination 4 | . . . . . . 1 . 1 . . . . . . . . 1 . . . . . 1 Reinforcement 28 | . 2 2 . 3 . . . . . 1 . 1 2 . . 6 4 . 1 . 1 1 4 Assault 2 | . . . . . . . . . . . . . . . . 2 . . . . . . . Garrison 2 | . . . . . . . . 1 . . . . . . . . 1 . . . . . . Intercept . | . . . . . . . . . . . . . . . . . . . . . . . . Searches Triggered . | . . . . . . . . . . . . . . . . . . . . . . . . Construction Impeded 2 | . . . . . . . . . . . . . 1 . . 1 . . . . . . . Haulers Reinforced 1 | . . . . . . . . . . 1 . . . . . . . . . . . . . Active Scanning Responses . | . . . . . . . . . . . . . . . . . . . . . . . . Cargo Convoy Interrupts . | . . . . . . . . . . . . . . . . . . . . . . . . Alert ID Control Effect 41 | . . . . . . . . 3 9 9 . . 2 . . 7 11 . . . . . . Stealth | -11 -10 -9 -9 -8 -8 -7 -7 -7 -7 -6 -6 -5 -5 -5 -5 -5 -4 -4 -3 -3 -3 -2 -2 --------- Run | Scr Mat Mat Min Mat Gar Fac Gar Fac Gar Fac Gar Fac Ext Cet Arc Hub Fac Gar Res Gar Res Res Tes Distress Signals 14 | . 1 2 . 4 . . . 1 . 2 . . 2 . . 1 . . . . 1 . . Communications Jammed . | . . . . . . . . . . . . . . . . . . . . . . . . Distress Signals . | . . . . . . . . . . . . . . . . . . . . . . . . Times Spotted 410 | . 18 17 . 36 25 9 26 11 16 22 21 . 20 14 5 37 26 19 4 4 31 11 38 Peak Tracking Total 17 | . 11 14 . 8 5 4 10 3 6 5 7 . 6 5 1 16 6 14 3 4 17 8 13 Tactical Retreats 32 | . . 1 . 3 3 1 1 . 3 1 2 . . . . . . 5 . . 4 1 7 Traps | -11 -10 -9 -9 -8 -8 -7 -7 -7 -7 -6 -6 -5 -5 -5 -5 -5 -4 -4 -3 -3 -3 -2 -2 ------- Run | Scr Mat Mat Min Mat Gar Fac Gar Fac Gar Fac Gar Fac Ext Cet Arc Hub Fac Gar Res Gar Res Res Tes Traps Triggered 23 | . 1 . . . 3 1 3 . 7 . 2 . . . . 1 . . . 1 3 . 1 Indirectly . | . . . . . . . . . . . . . . . . . . . . . . . . Trap Hack Attempts . | . . . . . . . . . . . . . . . . . . . . . . . . Triggered . | . . . . . . . . . . . . . . . . . . . . . . . . Disarmed . | . . . . . . . . . . . . . . . . . . . . . . . . Reprogrammed . | . . . . . . . . . . . . . . . . . . . . . . . . Reused . | . . . . . . . . . . . . . . . . . . . . . . . . Traps Extracted . | . . . . . . . . . . . . . . . . . . . . . . . . Installed . | . . . . . . . . . . . . . . . . . . . . . . . . Triggered . | . . . . . . . . . . . . . . . . . . . . . . . . Machines | -11 -10 -9 -9 -8 -8 -7 -7 -7 -7 -6 -6 -5 -5 -5 -5 -5 -4 -4 -3 -3 -3 -2 -2 ---------- Run | Scr Mat Mat Min Mat Gar Fac Gar Fac Gar Fac Gar Fac Ext Cet Arc Hub Fac Gar Res Gar Res Res Tes Machines Disabled 29 | . . . . 1 3 . 2 1 2 6 2 . 4 1 2 3 1 . . . . . 1 Max in Single Turn 2 | . . . . 1 1 . 1 1 1 2 1 . 1 1 . 1 1 . . . . . 1 Garrison Access 2 | . . . . . . . . . . . . . . . . 2 . . . . . . . Garrison Relay 10 | . . . . . 3 . 2 . 2 . 2 . . . . . . . . 1 . . . Network Hub 1 | . . . . . . . . . . . . . . . . 1 . . . . . . . Energy Cycler 2 | . . . . . . . . . . . . . 2 . . . . . . . . . . Machines Sabotaged 1 | . . . . . . . . . . . . . . . . 1 . . . . . . . Garrisons Compromised . | . . . . . . . . . . . . . . . . . . . . . . . . Overloaded Fab Kills . | . . . . . . . . . . . . . . . . . . . . . . . . Hacking | -11 -10 -9 -9 -8 -8 -7 -7 -7 -7 -6 -6 -5 -5 -5 -5 -5 -4 -4 -3 -3 -3 -2 -2 --------- Run | Scr Mat Mat Min Mat Gar Fac Gar Fac Gar Fac Gar Fac Ext Cet Arc Hub Fac Gar Res Gar Res Res Tes Machines Accessed 30 | . . 2 . 3 . 1 . 3 . 3 . 2 2 2 . 4 4 . 1 . . 1 2 Terminals 21 | . . 2 . 2 . . . 1 . 2 . 2 2 2 . 3 2 . . . . 1 2 Fabricators 2 | . . . . . . . . 1 . . . . . . . . 1 . . . . . . Repair Stations . | . . . . . . . . . . . . . . . . . . . . . . . . Recycling Units . | . . . . . . . . . . . . . . . . . . . . . . . . Scanalyzers . | . . . . . . . . . . . . . . . . . . . . . . . . Garrison Access 7 | . . . . 1 . 1 . 1 . 1 . . . . . 1 1 . 1 . . . . Total Hacks 79 | . . 5 . 8 . 1 . 4 . 5 . 4 2 5 . 13 15 . 1 . . 12 4 Successful 37 | . . 2 . 2 . 1 . 2 . 1 . 2 2 1 . 8 9 . 1 . . 3 3 Failed 41 | . . 3 . 6 . . . 2 . 4 . 2 . 4 . 5 5 . . . . 9 1 Catastrophic 7 | . . 1 . 3 . . . . . . . 1 . 1 . . . . . . . 1 . Database Lockouts 1 | . . . . . . . . . . . . . . . . . 1 . . . . . . Manual 52 | . . 5 . 8 . . . 2 . . . 2 . 2 . 11 9 . . . . 12 1 Terminals 67 | . . 5 . 7 . . . 2 . 4 . 4 2 5 . 12 10 . . . . 12 4 Fabricators 5 | . . . . . . . . 1 . . . . . . . . 4 . . . . . . Repair Stations . | . . . . . . . . . . . . . . . . . . . . . . . . Recycling Units . | . . . . . . . . . . . . . . . . . . . . . . . . Scanalyzers . | . . . . . . . . . . . . . . . . . . . . . . . . Garrison Access 7 | . . . . 1 . 1 . 1 . 1 . . . . . 1 1 . 1 . . . . Terminal Hacks 19 | . . 2 . 1 . . . . . . . 2 2 1 . 3 3 . . . . 2 3 Record 1 | . . . . . . . . . . . . . . 1 . . . . . . . . . Part Schematic 2 | . . . . . . . . . . . . 1 . . . 1 . . . . . . . Robot Analysis 5 | . . 2 . 1 . . . . . . . . . . . . 2 . . . . . . Open Door 2 | . . . . . . . . . . . . . 2 . . . . . . . . . . Level Access Points 1 | . . . . . . . . . . . . . . . . . . . . . . . 1 Branch Access Points 1 | . . . . . . . . . . . . . . . . . . . . . . 1 . Terminal Index 3 | . . . . . . . . . . . . . . . . 1 1 . . . . 1 . Maintenance Status 1 | . . . . . . . . . . . . . . . . 1 . . . . . . . Hauler Manifests 1 | . . . . . . . . . . . . . . . . . . . . . . . 1 Zone Layout 2 | . . . . . . . . . . . . 1 . . . . . . . . . . 1 Fabricator Hacks 3 | . . . . . . . . 1 . . . . . . . . 2 . . . . . . Network Status 2 | . . . . . . . . 1 . . . . . . . . 1 . . . . . . Build 1 | . . . . . . . . . . . . . . . . . 1 . . . . . . Repair Station Hacks . | . . . . . . . . . . . . . . . . . . . . . . . . Recycling Unit Hacks . | . . . . . . . . . . . . . . . . . . . . . . . . Scanalyzer . | . . . . . . . . . . . . . . . . . . . . . . . . Garrison Access Hacks 6 | . . . . 1 . 1 . 1 . 1 . . . . . . 1 . 1 . . . . Unlock Access 6 | . . . . 1 . 1 . 1 . 1 . . . . . . 1 . 1 . . . . Unauthorized Hacks 9 | . . . . . . . . . . . . . . . . 5 3 . . . . 1 . Terminals 7 | . . . . . . . . . . . . . . . . 4 2 . . . . 1 . Assimilate 1 | . . . . . . . . . . . . . . . . . . . . . . 1 . Botnet 3 | . . . . . . . . . . . . . . . . 2 1 . . . . . . Operators 2 | . . . . . . . . . . . . . . . . 1 1 . . . . . . Sabotage 1 | . . . . . . . . . . . . . . . . 1 . . . . . . . Fabricators 1 | . . . . . . . . . . . . . . . . . 1 . . . . . . Prioritize 1 | . . . . . . . . . . . . . . . . . 1 . . . . . . Repair Stations . | . . . . . . . . . . . . . . . . . . . . . . . . Recycling Units . | . . . . . . . . . . . . . . . . . . . . . . . . Scanalyzers . | . . . . . . . . . . . . . . . . . . . . . . . . Garrison Access 1 | . . . . . . . . . . . . . . . . 1 . . . . . . . Reprogram 1 | . . . . . . . . . . . . . . . . 1 . . . . . . . Data Cores Recovered 1 | . . . . . . . . . . . . . . . . . . . . . . . 1 Used 1 | . . . . . . . . . . . . . . . . . . . . . . . 1 Hacking Detections 18 | . . 2 . 3 . . . 1 . 2 . 1 . 1 . 3 2 . 1 . . 1 1 Full Trace Events 5 | . . 1 . 1 . . . . . 2 . 1 . . . . . . . . . . . Feedback Events . | . . . . . . . . . . . . . . . . . . . . . . . . Feedback Blocked . | . . . . . . . . . . . . . . . . . . . . . . . . Robot Schematics Acquired . | . . . . . . . . . . . . . . . . . . . . . . . . Robots Built 2 | . . . . . . . . . . . . . . . . . 2 . . . . . . Authchips . | . . . . . . . . . . . . . . . . . . . . . . . . Time 46 | . . . . . . . . . . . . . . . . . 46 . . . . . . Total Robot Build Rating 14 | . . . . . . . . . . . . . . . . . 14 . . . . . . Part Schematics Acquired 2 | . . . . . . . . . . . . 1 . . . 1 . . . . . . . Parts Built . | . . . . . . . . . . . . . . . . . . . . . . . . Authchips . | . . . . . . . . . . . . . . . . . . . . . . . . Time . | . . . . . . . . . . . . . . . . . . . . . . . . Total Part Build Rating . | . . . . . . . . . . . . . . . . . . . . . . . . Parts Repaired . | . . . . . . . . . . . . . . . . . . . . . . . . Time . | . . . . . . . . . . . . . . . . . . . . . . . . Parts Recycled . | . . . . . . . . . . . . . . . . . . . . . . . . Recycled Matter . | . . . . . . . . . . . . . . . . . . . . . . . . Retrieved Matter . | . . . . . . . . . . . . . . . . . . . . . . . . Retrieved Components . | . . . . . . . . . . . . . . . . . . . . . . . . Parts Scanalyzed . | . . . . . . . . . . . . . . . . . . . . . . . . Part Schematics Acquired . | . . . . . . . . . . . . . . . . . . . . . . . . Parts Damaged . | . . . . . . . . . . . . . . . . . . . . . . . . Bothacking | -11 -10 -9 -9 -8 -8 -7 -7 -7 -7 -6 -6 -5 -5 -5 -5 -5 -4 -4 -3 -3 -3 -2 -2 ------------ Run | Scr Mat Mat Min Mat Gar Fac Gar Fac Gar Fac Gar Fac Ext Cet Arc Hub Fac Gar Res Gar Res Res Tes Used RIF Installer 4 | . . . . . 1 . 1 . 1 . 1 . . . . . . . . . . . . Watcher Feeds 1 | . . . . . . . . . . . 1 . . . . . . . . . . . . Alert ID Control 1 | . . . . . . . 1 . . . . . . . . . . . . . . . . Program Shield 1 | . . . . . . . . . 1 . . . . . . . . . . . . . . Robots Hacked 59 | . . . . . . 4 9 5 5 6 2 1 5 . . 3 7 . . . 2 . 10 Non-combat 11 | . . . . . . . . 1 . 1 . 1 1 . . . 4 . . . 1 . 2 Combat 48 | . . . . . . 4 9 4 5 5 2 . 4 . . 3 3 . . . 1 . 8 Robot Hacks Applied 67 | . . . . . . 5 9 6 5 7 2 1 6 . . 3 8 . . . 3 . 12 parse_system 1 | . . . . . . . . . . . . . . . . . 1 . . . . . . map_walls 2 | . . . . . . . . . . . . . . . . . 1 . . . 1 . . drop_inventory 3 | . . . . . . . . . . 1 . 1 . . . . . . . . . . 1 purge_threat 2 | . . . . . . . . . . . . . 1 . . . 1 . . . . . . block_reporting 1 | . . . . . . . . . . . . . . . . . . . . . . . 1 map_route 1 | . . . . . . . . 1 . . . . . . . . . . . . . . . disable_scanner 3 | . . . . . . . . . . . . . . . . . . . . . . . 3 locate_prototypes 1 | . . . . . . . . . . . . . . . . . . . . . . . 1 find_garrison 6 | . . . . . . 1 . 1 . 1 . . . . . . 1 . . . 1 . 1 reboot_system 4 | . . . . . . . . 1 2 . . . 1 . . . . . . . . . . overwrite_iff 15 | . . . . . . 2 7 . . 2 1 . . . . . 1 . . . 1 . 1 formatsys_low 3 | . . . . . . . . . . . . . 1 . . . 2 . . . . . . formatsys_high 25 | . . . . . . 2 2 3 3 3 1 . 3 . . 3 1 . . . . . 4 Relay Couplers Released 41 | . . . . . 12 . 9 . 7 . 7 . . . . 1 . . . 5 . . . Machine Destruction 41 | . . . . . 12 . 9 . 7 . 7 . . . . 1 . . . 5 . . . Attached 29 | . . . . . . 2 5 3 3 2 4 . 3 . . 1 2 . . 3 . 1 . Fabnet Peak Effective % . | . . . . . . . . . . . . . . . . . . . . . . . . Robots Rewired 9 | . . . . . . . . . . . . . 7 . . . 1 . . . . . 1 Allies Hacked . | . . . . . . . . . . . . . . . . . . . . . . . . Hacks Repelled . | . . . . . . . . . . . . . . . . . . . . . . . . Allies | -11 -10 -9 -9 -8 -8 -7 -7 -7 -7 -6 -6 -5 -5 -5 -5 -5 -4 -4 -3 -3 -3 -2 -2 -------- Run | Scr Mat Mat Min Mat Gar Fac Gar Fac Gar Fac Gar Fac Ext Cet Arc Hub Fac Gar Res Gar Res Res Tes Total Allies 67 | . . . . . . 4 9 3 3 5 2 . 16 5 . 5 7 . . . 1 1 6 Largest Group 13 | . . . . . . 1 3 3 4 4 3 . 13 8 8 6 4 . . . 1 1 3 Highest-Rated Group 704 | . . . . . . 16 48 98 114 140 102 . 537 704 704 417 245 . . . 47 10 165 Highest-Rated Ally 159 | . . . . . . 16 29 34 34 47 41 . 159 159 159 96 110 . . . 47 10 112 Total Orders 11 | . . . . . . . . . . . . 1 . . . 4 5 . . . . 1 . STAY 4 | . . . . . . . . . . . . . . . . 2 2 . . . . . . FOLLOW 5 | . . . . . . . . . . . . . . . . 2 3 . . . . . . EXPLORE 2 | . . . . . . . . . . . . 1 . . . . . . . . . 1 . Ally Attacks 506 | . . . . . . 14 40 19 30 65 26 . 64 59 30 81 38 . . . 1 . 39 Total Damage 16284 | . . . . . . 186 466 662 1008 1580 985 . 1982 1478 1266 3349 1984 . . . 38 . 1300 Kills 114 | . . . . . . 2 5 5 10 10 8 . 18 15 4 20 14 . . . . . 3 Allies Corrupted 1 | . . . . . . . . . . . . . . . . 1 . . . . . . . Allies Melted 1 | . . . . . . . 1 . . . . . . . . . . . . . . . . Intel | -11 -10 -9 -9 -8 -8 -7 -7 -7 -7 -6 -6 -5 -5 -5 -5 -5 -4 -4 -3 -3 -3 -2 -2 ------- Run | Scr Mat Mat Min Mat Gar Fac Gar Fac Gar Fac Gar Fac Ext Cet Arc Hub Fac Gar Res Gar Res Res Tes Robot Analysis Total 5 | . . 2 . 1 . . . . . . . . . . . . 2 . . . . . . Derelict Logs Recovered 1 | . . . 1 . . . . . . . . . . . . . . . . . . . . Drone Launches 5 | . . . . . . . . . . . . 3 . . . . . . . . . 2 . Drone Recoveries . | . . . . . . . . . . . . . . . . . . . . . . . . Exploration | -11 -10 -9 -9 -8 -8 -7 -7 -7 -7 -6 -6 -5 -5 -5 -5 -5 -4 -4 -3 -3 -3 -2 -2 ------------- Run | Scr Mat Mat Min Mat Gar Fac Gar Fac Gar Fac Gar Fac Ext Cet Arc Hub Fac Gar Res Gar Res Res Tes Turns Passed 9751 | 7 175 284 79 794 1081 435 1053 425 559 490 483 126 770 530 147 617 732 193 15 99 217 107 333 Spaces Moved 6449 | 1 128 203 50 440 389 182 515 286 350 303 252 54 386 282 80 310 566 202 28 159 459 156 668 Core 477 | . 31 18 . 4 . . . . . . . . . . . . . 133 15 91 185 . . Treads 2010 | 1 97 81 50 82 355 107 356 . . . . . 116 282 80 308 95 . . . . . . Legs 1626 | . . . . . . . 109 286 350 303 252 54 270 . . 2 . . . . . . . Wheels 513 | . . . . 354 34 75 50 . . . . . . . . . . . . . . . . Hover 786 | . . 104 . . . . . . . . . . . . . . 471 69 . . . . 142 Flight 1037 | . . . . . . . . . . . . . . . . . . . 13 68 274 156 526 Fastest Speed 27 | 160 50 50 160 50 125 140 120 120 123 120 120 120 120 160 160 160 72 50 45 45 34 35 27 Average Speed 112 | 160 133 99 160 127 190 151 155 120 128 121 139 120 143 160 160 160 86 58 47 47 41 35 36 Slowest Speed 330 | 160 160 240 160 240 240 160 190 123 195 123 190 120 330 160 160 260 166 76 50 50 50 35 110 Overloaded Moves 5 | . . . . . . . . . . . . . . . . . . . . . . . 5 Propulsion Burnouts . | . . . . . . . . . . . . . . . . . . . . . . . . Robots Hopped 32 | . . . . . . . . . . . . . . . . . . . 1 . 13 4 14 Cave-ins Triggered . | . . . . . . . . . . . . . . . . . . . . . . . . Exploration Rate (%) 36 | 2 37 26 25 44 51 7 66 13 43 10 52 12 81 78 72 41 18 46 3 37 19 13 72 Regions Visited 23 Branch Regions 6 Pre-discovered Areas 1 | . . . 1 . . . . . . . . . . . . . . . . . . . . Known Exits Taken 7 | . . . . 1 . 1 . 1 . 1 . . . . . . 1 . 1 . . 1 . Unknown Exits Taken 10 | 1 1 1 1 . . . . . . . . 1 1 1 1 1 . . . . 1 . . Scrap Searched . | . . . . . . . . . . . . . . . . . . . . . . . . Spaces Dug 97 | . . . . . . . . . . 1 . . 87 . . 4 1 . . . . . 4 Terrain Destroyed 330 | . . . . 21 . . . . 89 70 31 . 87 2 . 24 2 . . . . . 4 Melee 4 | . . . . . . . . . . 1 . . . . . 2 1 . . . . . . Projectile 21 | . . . . . . . . . . . . . 10 2 . 4 1 . . . . . 4 AOE 305 | . . . . 21 . . . . 89 69 31 . 77 . . 18 . . . . . . . Terrain Rammed 1 | . . . . . . . 1 . . . . . . . . . . . . . . . . Walls Destroyed . | . . . . . . . . . . . . . . . . . . . . . . . . Machines Disabled . | . . . . . . . . . . . . . . . . . . . . . . . . Actions | -11 -10 -9 -9 -8 -8 -7 -7 -7 -7 -6 -6 -5 -5 -5 -5 -5 -4 -4 -3 -3 -3 -2 -2 --------- Run | Scr Mat Mat Min Mat Gar Fac Gar Fac Gar Fac Gar Fac Ext Cet Arc Hub Fac Gar Res Gar Res Res Tes Total 8083 | 9 132 259 49 559 585 278 667 345 434 382 330 112 539 326 93 375 737 270 28 179 471 203 721 Wait 490 | . . 16 . 13 44 51 14 14 31 5 2 53 34 4 2 7 72 61 . 7 7 45 8 Move 6373 | . 127 202 49 440 388 181 513 286 349 303 251 53 385 281 79 309 566 201 26 158 435 148 643 Hop 25 | . . . . . . . . . . . . . . . . . . . 1 . 10 3 11 Pick Up 101 | . 2 7 . 12 16 2 11 2 7 6 3 . 9 2 1 1 8 . . . 3 4 5 Fast Attach 122 | 1 . 8 . 17 8 3 10 6 3 5 4 3 10 5 2 7 11 . 1 3 4 1 10 Attach 72 | 1 . 5 . 3 11 6 7 4 2 4 1 1 3 . . 5 6 . . 1 5 1 6 Detach 22 | 2 . 2 . 2 . 3 . 1 . . . . . 1 . 2 5 . . . 2 . 2 Swap 80 | . . . . 1 2 2 14 2 5 10 8 . 7 5 2 8 12 1 . . . . 1 Drop 118 | 5 2 6 . 5 12 . 16 5 4 7 5 . 17 11 4 2 8 . . . 2 1 6 Fire 489 | . . 12 . 62 87 18 56 16 17 40 31 2 33 17 3 26 39 . . . 3 . 27 Melee 80 | . . . . . . 10 6 6 6 1 14 . 13 . . 8 10 4 . . . . 2 Ram 13 | . . . . 2 . . 2 . . . . . . . . . . 3 . 6 . . . Kick 5 | . . . . . . . . 3 . 1 1 . . . . . . . . . . . . Crush 5 | . 1 1 . 2 1 . . . . . . . . . . . . . . . . . . Escape Stasis 58 | . . . . . 16 . 18 . 10 . 10 . . . . . . . . 4 . . . Rewire 30 | . . . . . . 2 . . . . . . 28 . . . . . . . . . . Trap . | . . . . . . . . . . . . . . . . . . . . . . . . Miscellaneous . | . . . . . . . . . . . . . . . . . . . . . . . . Route ------- -11/Scrapyard -10/Materials -9/Materials (discovered 2 exits: [*Min x2]) -9/Mines -8/Materials -8/Garrison (discovered 2 exits: *Fac x2) -7/Factory -7/Garrison (discovered 2 exits: *Fac x2) -7/Factory (discovered 2 exits: *Fac / Gar) -7/Garrison -6/Factory -6/Garrison -5/Factory (discovered 2 exits: [*Upp] / *Ext) -5/Extension (discovered 3 exits: *Fac x2 / *Cet) -5/Cetus (discovered 2 exits: *Fac / [*Arc]) -5/Archives -5/Hub_04(d) (discovered 2 exits: *Fac x2) -4/Factory (discovered 2 exits: *Res / Gar) -4/Garrison (discovered 2 exits: *Res x2) -3/Research -3/Garrison -3/Research (discovered 2 exits: *Res / [*Arm]) -2/Research (discovered 2 exits: *Tes x2) -2/Testing (discovered 1 exit: *Acc) History --------- Turn | Location | Event 8 | -11/Scrapyard | Discovered new exit (range 0) 8 | -11/Scrapyard | Entered Materials 176 | -10/Materials | Discovered new exit (range 16) 183 | -10/Materials | Entered another Materials area 183 | -9/Materials | Evolved 2 slots: Utility x2 183 | -9/Materials | Discovered new exit (range 8) 443 | -9/Materials | Discovered new exit (range 15) 467 | -9/Materials | Entered Mines 473 | -9/Mines | Met a Derelict bent on vengeance 530 | -9/Mines | Discovered new exit (range 10) 546 | -9/Mines | Entered Materials 546 | -8/Materials | Evolved 2 slots: Propulsion x1, Weapon x1 600 | -8/Materials | Build established: Scavenger-Mutant 687 | -8/Materials | Lost 5 parts (1n1u3w) 1340 | -8/Materials | Identified exit to Garrison 1340 | -8/Materials | Entered Garrison 1348 | -8/Garrison | Installed Relay Interface Framework 1392 | -8/Garrison | Triggered checkpoint 1448 | -8/Garrison | Garrison Relay disabled 1604 | -8/Garrison | Lost 5 parts (1p2n2w) 1654 | -8/Garrison | Triggered checkpoint 1678 | -8/Garrison | Core integrity fell below 50% 1705 | -8/Garrison | Destroyed 7 combat bots 1739 | -8/Garrison | Discovered new exit (range 13) 1783 | -8/Garrison | Core integrity fell below 20% 1802 | -8/Garrison | Lost 4 parts (1p1n1u1w) 1856 | -8/Garrison | Triggered checkpoint 1925 | -8/Garrison | Garrison Relay disabled 2160 | -8/Garrison | Triggered checkpoint 2227 | -8/Garrison | Build established: Bothacker-Mutant 2258 | -8/Garrison | Triggered checkpoint 2330 | -8/Garrison | Triggered checkpoint 2351 | -8/Garrison | Garrison Relay disabled 2400 | -8/Garrison | Discovered new exit (range 14) 2421 | -8/Garrison | Entered Factory 2421 | -7/Factory | Evolved 2 slots: Utility x2 2855 | -7/Factory | Identified exit to Garrison 2856 | -7/Factory | Entered Garrison 2856 | -7/Garrison | Accompanied by 1 ally 2868 | -7/Garrison | Triggered checkpoint 3108 | -7/Garrison | Triggered checkpoint 3108 | -7/Garrison | Garrison Relay disabled 3238 | -7/Garrison | Triggered checkpoint 3346 | -7/Garrison | Discovered new exit (range 15) 3430 | -7/Garrison | Triggered checkpoint 3545 | -7/Garrison | Discovered new exit (range 11) 3571 | -7/Garrison | Expanded RIF knowledge: Alert ID Control 3616 | -7/Garrison | Triggered checkpoint 3665 | -7/Garrison | Garrison Relay disabled 3788 | -7/Garrison | Triggered checkpoint 3909 | -7/Garrison | Entered Factory 3909 | -7/Factory | Accompanied by 1 ally 4113 | -7/Factory | Discovered new exit (range 15) 4299 | -7/Factory | Garrison activated, responded to threat 4334 | -7/Factory | Identified exit to Garrison 4334 | -7/Factory | Entered Garrison 4334 | -7/Garrison | Accompanied by 3 allies 4364 | -7/Garrison | Triggered checkpoint 4398 | -7/Garrison | Garrison Relay disabled 4503 | -7/Garrison | Lost 3 parts (1p2n) 4582 | -7/Garrison | Triggered checkpoint 4635 | -7/Garrison | Discovered new exit (range 14) 4717 | -7/Garrison | Expanded RIF knowledge: Program Shield 4781 | -7/Garrison | Garrison Relay disabled 4893 | -7/Garrison | Entered Factory 4893 | -6/Factory | Accompanied by 2 allies 4893 | -6/Factory | Evolved 2 slots: Utility x2 5383 | -6/Factory | Identified exit to Garrison 5383 | -6/Factory | Entered Garrison 5383 | -6/Garrison | Accompanied by 3 allies 5418 | -6/Garrison | Triggered checkpoint 5449 | -6/Garrison | Garrison Relay disabled 5526 | -6/Garrison | Triggered checkpoint 5606 | -6/Garrison | Triggered checkpoint 5611 | -6/Garrison | Triggered checkpoint 5705 | -6/Garrison | Discovered new exit (range 11) 5729 | -6/Garrison | Expanded RIF knowledge: Watcher Feeds 5766 | -6/Garrison | Triggered checkpoint 5819 | -6/Garrison | Garrison Relay disabled 5829 | -6/Garrison | Lost 4 parts (1p2u1w) 5866 | -6/Garrison | Entered Factory 5866 | -5/Factory | Evolved 2 slots: Utility x2 5912 | -5/Factory | Discovered new exit (range 18) 5920 | -5/Factory | Discovered new exit (range 10) 5992 | -5/Factory | Entered Extension 6013 | -5/Extension | Build established: Botlord-Mutant 6125 | -5/Extension | Rescued a captive Derelict 6125 | -5/Extension | Rescued a captive Derelict 6212 | -5/Extension | Rescued A7 6429 | -5/Extension | Energy Cycler disabled 6429 | -5/Extension | Discovered new exit (range 34) 6430 | -5/Extension | Rescued a captive Derelict 6431 | -5/Extension | Rescued a captive Derelict 6433 | -5/Extension | Rescued a captive Derelict 6721 | -5/Extension | Discovered new exit (range 10) 6722 | -5/Extension | Discovered new exit (range 6) 6762 | -5/Extension | Entered Cetus 6762 | -5/Cetus | Accompanied by 4 allies (A7) 6767 | -5/Cetus | Acquired a Cetus Manufacturing Module code from A7 6786 | -5/Cetus | Destroyed Cetus Guard 6789 | -5/Cetus | Build established: Botlord-Gunner 6789 | -5/Cetus | Destroyed Cetus Guard 6792 | -5/Cetus | Spotted Cetus Guard 6798 | -5/Cetus | Allies destroyed Cetus Guard 6809 | -5/Cetus | Spotted Cetus Guard 6813 | -5/Cetus | Allies destroyed Cetus Guard 6918 | -5/Cetus | Started Cetus Manufacturing Module 6937 | -5/Cetus | Discovered new exit (range 16) 6943 | -5/Cetus | Manufactured an Enhanced Grunt 6955 | -5/Cetus | Discovered new exit (range 27) 6966 | -5/Cetus | Spotted Cetus Guard 6966 | -5/Cetus | Spotted Cetus Guard 6968 | -5/Cetus | Manufactured an Enhanced Grunt 6968 | -5/Cetus | Allies destroyed Cetus Guard 6970 | -5/Cetus | Spotted Cetus Guard 6970 | -5/Cetus | Spotted Cetus Guard 6980 | -5/Cetus | Allies destroyed Cetus Guard 6982 | -5/Cetus | Allies destroyed Cetus Guard 6986 | -5/Cetus | Allies destroyed Cetus Guard 6993 | -5/Cetus | Manufactured an Enhanced Grunt 7018 | -5/Cetus | Manufactured an Enhanced Grunt 7043 | -5/Cetus | Manufactured an Enhanced Grunt 7087 | -5/Cetus | Escorted A7 to Cetus Mainframe 7231 | -5/Cetus | Met Revision 17 7292 | -5/Cetus | Entered Archives 7292 | -5/Archives | Accompanied by 8 allies (A7) 7297 | -5/Archives | Received a hacking code to weaken MAIN.C 7339 | -5/Archives | Discovered new exit (range 15) 7439 | -5/Archives | Entered Hub_04(d) 7439 | -5/Hub_04(d) | Accompanied by 4 allies 7447 | -5/Hub_04(d) | Discovered new exit (range 15) 7732 | -5/Hub_04(d) | Discovered new exit (range 29) 7762 | -5/Hub_04(d) | Build established: Bothacker-Mutant 8039 | -5/Hub_04(d) | Network Hub disabled 8051 | -5/Hub_04(d) | Spotted Lightning 8051 | -5/Hub_04(d) | Spotted Lightning 8052 | -5/Hub_04(d) | Spotted Lightning 8052 | -5/Hub_04(d) | Spotted Lightning 8052 | -5/Hub_04(d) | Spotted Lightning 8052 | -5/Hub_04(d) | Spotted Lightning 8052 | -5/Hub_04(d) | Spotted Lightning 8052 | -5/Hub_04(d) | Spotted Lightning 8053 | -5/Hub_04(d) | Spotted Lightning 8056 | -5/Hub_04(d) | Entered Factory 8056 | -4/Factory | Evolved 2 slots: Utility x2 8101 | -4/Factory | Spotted B-86 Titan 8206 | -4/Factory | Rewired B-86 Titan 8353 | -4/Factory | Fabricated X-77 Beamer (x2) 8366 | -4/Factory | Destroyed Titan 7a 8555 | -4/Factory | Found Quantum Capacitor 8750 | -4/Factory | Discovered new exit (range 16) 8763 | -4/Factory | Central database locked down 8775 | -4/Factory | Garrison activated, responded to threat 8788 | -4/Factory | Identified exit to Garrison 8788 | -4/Factory | Entered Garrison 8818 | -4/Garrison | Lost 4 parts (1p2u1w) 8896 | -4/Garrison | Triggered checkpoint 8907 | -4/Garrison | Spotted B-86 Titan 8911 | -4/Garrison | Triggered checkpoint 8930 | -4/Garrison | Discovered new exit (range 12) 8945 | -4/Garrison | Core integrity fell below 50% 8957 | -4/Garrison | Triggered checkpoint 8961 | -4/Garrison | Core integrity fell below 20% 8963 | -4/Garrison | Spotted B-86 Titan 8963 | -4/Garrison | Spotted B-86 Titan 8974 | -4/Garrison | Discovered new exit (range 15) 8981 | -4/Garrison | Entered Research 8981 | -3/Research | Evolved 2 slots: Utility x2 8991 | -3/Research | Lost 11 parts (3n7u1w) 8996 | -3/Research | Identified exit to Garrison 8996 | -3/Research | Entered Garrison 9020 | -3/Garrison | Triggered checkpoint 9037 | -3/Garrison | Garrison Relay disabled 9069 | -3/Garrison | Spotted B-86 Titan 9086 | -3/Garrison | Discovered new exit (range 15) 9095 | -3/Garrison | Entered Research 9198 | -3/Research | Core integrity fell below 50% 9228 | -3/Research | Discovered new exit (range 16) 9249 | -3/Research | Core integrity fell below 20% 9265 | -3/Research | Lost 4 parts (4n) 9289 | -3/Research | System corruption reached 10% 9312 | -3/Research | Discovered new exit (range 7) 9312 | -3/Research | Entered another Research area 9312 | -2/Research | Evolved 2 slots: Utility x2 9369 | -2/Research | Identified exit to Testing 9401 | -2/Research | Spotted B-90 Cyclops 9419 | -2/Research | Entered Testing 9493 | -2/Testing | Found Molecular Scythe 9498 | -2/Testing | Identified exit to Access 9504 | -2/Testing | Spotted PL-R6K0E9I3RH 9513 | -2/Testing | Rewired PL-R6K0E9I3RH 9523 | -2/Testing | Spotted PX-K47BEMK8HO 9531 | -2/Testing | Spotted Striker 9589 | -2/Testing | Found Prototype Device 9589 | -2/Testing | Identified Exp. Transmission Jammer 9752 | -2/Testing | Self-destructed Last Messages --------------- 09687_ Xenon Bombardment Thruster destroyed. 09687_ Knocked back. 09695_ >> Watcher Feeds: Feed link from W-44 Eye lost. 09704_ >> Watcher Feeds: Established visual feed link with W-44 Eye. 09705_ Dropped Centrium Leg. 09706_ Acquired Biometal Heavy Treads. 09718_ >> Watcher Feeds: Feed link from W-44 Eye lost. 09724_ Dropped Cld. Linear Gravjet. 09725_ Acquired Prototype Flight Unit. 09725_ Identified Cld. Q-thruster. 09726_ Acquired Cld. Linear Gravjet. 09743_ O-32 Director: "IFF HANDSHAKE FAILED. SECURING TERMINAL." 09744_ O-32 Director uses terminal to summon reinforcements. 09744_ ALERT: Hostiles spotted, dispatching reinforcements to Terminal T005. 09744_ O-32 Director locks terminal. 09747_ Jacked C-65 Expert... >>disable_scanner Stasis Projector permanently disabled. 09750_ Reinforced Shell breached. Map ----- +----------------------------------------------------+ | ?????????????????????????????????????????????????? | | ?????????????????????????????????????????????????? | | ?????????????????????????????????????????????????? | | ?????????????????????????????????????????????????? | | ???????????????????##############????????????????? | | ???????######??????#] #????????????????? | | ???????# #??????# #????????????????? | | ???????# #??????# #????????????????? | | ######## ######## #????????????????? | | + """ """ #????????????????? | | # """ """ #????????????????? | | """ / """ """ #????????????????? | | """ # #????????????????? | | """ ############### """ """ #????????????????? | | # ## """ """ #????????????????? | | """ # ## """ """ #????????????????? | | """ # ! "" #????????????????? | | """ # =%= ###############????????????????? | | +% !!! ""#???????????????????????????? | | """ # !!! """#????###????????????????????? | | """ " %!! R"#?##?"""#???????????????????? | | """ " """#?#]? ""#???????????????????? | | # = [ ""### " ""#???????????????????? | | """ # #####" """#???????????????????? | | """ # #???#" ""#???????????????????? | | """ # [ #???# @ #???????????????????? | | ##"F ""#######?####/#####???????????????????? | | """ ##"""""#??####?# c #????????????????????? | | """ ##"""""#???" ] # #????????????????????? | | """ ########????? # oT" #????????????????????? | | #?????? + "" #????????????????????? | | #???????# #????????????????????? | | #???????# #????????????????????? | | #???????# #????????????????????? | | #########+###???????### ###????????????????????? | | ??????????????????????# #??????????????????????? | | ??????????????????????# #??????????????????????? | | ??????????????????????# #??????????????????????? | | ??????????????????????# #??????????????????????? | | ??????????????????????# #??????????????????????? | | ??????????????????????# #??????????????????????? | | ??????????????????????# #???###????????????????? | | ??????????????????????# #?? #????????????????? | | ######???????????????## ##?] #????????????????? | | #???????????????# # #????????????????? | | #???????????????# # #????????????????? | | #???##########??# + = *#????????????????? | | #?? ???# # #????????????????? | | # #?? ?????# # #????????????????? | | # #? " ?????### ###? #????????????????? | +----------------------------------------------------+ Best States ------------- Heat Dissipation 62 Energy Generation 25 Energy Capacity 350 Matter Stores 300 Matter Capacity 300 Sight Range 16 Terrain Scan Range 14 Terrain Scan Density 10 Jamming Range 22 EM Shielding 2 Armor Coverage 600 Utility Shielding 66 Weapon Shielding 33 Evasion (%) 63 Targeting Accuracy 12 Melee Accuracy 8 Target Analysis 9 Recoil Reduction 3 Kinecelleration 30 Offensive Hacking 22 Defensive Hacking 22 Relay Coupler Types 6 Relay Coupler Value 146 Item Schematics ----------------- Remote Datajack | -5/Factory | Hacked Cmb. Gravmag System | -5/Hub_04(d) | Hacked Robot Schematics ------------------ None Fabricated ------------ X-77 Beamer | x2 | -4/Factory | Preloaded Alien Tech Used ----------------- None Achievements -------------- None Challenges ------------ None Game ------ Seed MappingStructuralCycler Manual? 0 Play Time 02:36:50 Cumulative 237.6 hours Start 2022.06.12 @ 14:59:07 End 2022.06.13 @ 07:02:31 Sessions 3 Manual Loads 0 Difficulty Rogue Special Mode None Game No. 292 Rogue 292 Adventurer 0 Explorer 0 Win Type - Total 11 Types 8/0/2/1/0/0/0/0/0 Lore% 69 Gallery% 85 Achievement% 74 Wizard Run 0 Options --------- ASCII 0 Keyboard 0 Movement Numpad Keybinds 0 Fullscreen 1 Font 18/Terminus Map View 76x50 Tactical HUD 1 Map Filters NONE Filters NONE Steam 1 RUN: a2d1416f-da0a-419c-860b-3e65953b2eef